Department family,Entity,Date,Expense type,Expense area,Supplier,Transaction number,Amount,Description
Department of Health,NHS Blood and Transplant,16/12/2016,AUDIT INTERNAL,Finance,DEPARTMENT OF HEALTH,2063836,50178.39,Fees for internal audit work
Department of Health,NHS Blood and Transplant,30/12/2016,AVERAGE COST VARIANCE,Development Fund,CARAT A TRADING DIVISION OF DENTSU AEGIS UK LTD,2068299,-0.14,Difference between Purchase Order and Supplier Invoice price for Stores items
Department of Health,NHS Blood and Transplant,30/12/2016,AVERAGE COST VARIANCE,Development Fund,CARAT A TRADING DIVISION OF DENTSU AEGIS UK LTD,2068313,-0.29,Difference between Purchase Order and Supplier Invoice price for Stores items
Department of Health,NHS Blood and Transplant,30/12/2016,AVERAGE COST VARIANCE,Development Fund,WILLIAMS LEA LTD,2071535,-0.02,Difference between Purchase Order and Supplier Invoice price for Stores items
Department of Health,NHS Blood and Transplant,30/12/2016,AVERAGE COST VARIANCE,Development Fund,WILLIAMS LEA LTD,2071537,-0.01,Difference between Purchase Order and Supplier Invoice price for Stores items
Department of Health,NHS Blood and Transplant,09/12/2016,AVERAGE COST VARIANCE,Development Fund,ALLSTAR BUSINESS SOLUTIONS LTD,2066997,-0.3,Difference between Purchase Order and Supplier Invoice price for Stores items
Department of Health,NHS Blood and Transplant,09/12/2016,AVERAGE COST VARIANCE,Development Fund,CAPITA RESOURCING LTD,2066610,-0.01,Difference between Purchase Order and Supplier Invoice price for Stores items
Department of Health,NHS Blood and Transplant,09/12/2016,AVERAGE COST VARIANCE,Development Fund,CAPITA RESOURCING LTD,2067636,-0.01,Difference between Purchase Order and Supplier Invoice price for Stores items
Department of Health,NHS Blood and Transplant,09/12/2016,AVERAGE COST VARIANCE,Development Fund,VODAFONE,2061311,1.91,Difference between Purchase Order and Supplier Invoice price for Stores items
Department of Health,NHS Blood and Transplant,02/12/2016,AVERAGE COST VARIANCE,Development Fund,WILLIAMS LEA LTD,2063989,0.01,Difference between Purchase Order and Supplier Invoice price for Stores items
Department of Health,NHS Blood and Transplant,02/12/2016,AVERAGE COST VARIANCE,Development Fund,WILLIAMS LEA LTD,2063990,-0.04,Difference between Purchase Order and Supplier Invoice price for Stores items
Department of Health,NHS Blood and Transplant,23/12/2016,BUSINESS RATES,Estates & Facilities,LIVERPOOL CITY COUNCIL,1997305,27087,Business rates
Department of Health,NHS Blood and Transplant,23/12/2016,BUSINESS RATES,Estates & Facilities,SOUTH GLOUCESTERSHIRE COUNCIL PO BOX 101,1994144,55167,Business rates
Department of Health,NHS Blood and Transplant,09/12/2016,CAPITAL PURCHASES ACCOUNT,,WHITE HORSE SCIENTIFIC LTD,2062919,26400,Purchase of Fixed Assets
Department of Health,NHS Blood and Transplant,02/12/2016,CAPITAL PURCHASES ACCOUNT,,MEDICAL SUPPLY CO. LTD,2061268,31437,Purchase of Fixed Assets
Department of Health,NHS Blood and Transplant,30/12/2016,CHEMICALS & REAGENTS,Diagnostic & Therapeutic Services,ILLUMINA CAMBRIDGE LTD,2067872,75204.94,Chemicals and Reagents used
Department of Health,NHS Blood and Transplant,16/12/2016,CLEANING CONTRACT,Estates & Facilities,MITIE TECHNICAL FACILITIES MANAGEMENT,2067239,104.25,External cleaning contracts
Department of Health,NHS Blood and Transplant,30/12/2016,COURIER & DELIVERY CHARGES,Diagnostic & Therapeutic Services,TNT EXPRESS UK LTD,2071954,11967.37,External courier and transport company costs
Department of Health,NHS Blood and Transplant,30/12/2016,COURIER & DELIVERY CHARGES,Diagnostic & Therapeutic Services,TNT EXPRESS UK LTD,2071956,14094.71,External courier and transport company costs
Department of Health,NHS Blood and Transplant,30/12/2016,COURIER & DELIVERY CHARGES,Logistics,TNT EXPRESS UK LTD,2071954,60418.72,External courier and transport company costs
Department of Health,NHS Blood and Transplant,30/12/2016,COURIER & DELIVERY CHARGES,Logistics,TNT EXPRESS UK LTD,2071956,52767.85,External courier and transport company costs
Department of Health,NHS Blood and Transplant,23/12/2016,COURIER & DELIVERY CHARGES,Organ Donation & Transplantation,AMVALE LTD,2068763,32981.08,External courier and transport company costs
Department of Health,NHS Blood and Transplant,23/12/2016,COURIER & DELIVERY CHARGES,Organ Donation & Transplantation,AMVALE LTD,2068764,36350.58,External courier and transport company costs
Department of Health,NHS Blood and Transplant,23/12/2016,COURIER & DELIVERY CHARGES,Organ Donation & Transplantation,AMVALE LTD,2068765,37039.93,External courier and transport company costs
Department of Health,NHS Blood and Transplant,23/12/2016,COURIER & DELIVERY CHARGES,Organ Donation & Transplantation,AMVALE LTD,2070967,21856.15,External courier and transport company costs
Department of Health,NHS Blood and Transplant,16/12/2016,COURIER & DELIVERY CHARGES,Organ Donation & Transplantation,AMVALE LTD,2063228,23814.41,External courier and transport company costs
Department of Health,NHS Blood and Transplant,09/12/2016,COURIER & DELIVERY CHARGES,Diagnostic & Therapeutic Services,TNT EXPRESS UK LTD,2066999,14439.95,External courier and transport company costs
Department of Health,NHS Blood and Transplant,09/12/2016,COURIER & DELIVERY CHARGES,Diagnostic & Therapeutic Services,TNT EXPRESS UK LTD,2067001,14787.14,External courier and transport company costs
Department of Health,NHS Blood and Transplant,09/12/2016,COURIER & DELIVERY CHARGES,Diagnostic & Therapeutic Services,TNT EXPRESS UK LTD,2067006,12360.4,External courier and transport company costs
Department of Health,NHS Blood and Transplant,09/12/2016,COURIER & DELIVERY CHARGES,Logistics,TNT EXPRESS UK LTD,2066999,59226.57,External courier and transport company costs
Department of Health,NHS Blood and Transplant,09/12/2016,COURIER & DELIVERY CHARGES,Logistics,TNT EXPRESS UK LTD,2067001,50900.21,External courier and transport company costs
Department of Health,NHS Blood and Transplant,09/12/2016,COURIER & DELIVERY CHARGES,Logistics,TNT EXPRESS UK LTD,2067006,59571.93,External courier and transport company costs
Department of Health,NHS Blood and Transplant,09/12/2016,COURIER & DELIVERY CHARGES,Organ Donation & Transplantation,AMVALE LTD,2062685,23957.25,External courier and transport company costs
Department of Health,NHS Blood and Transplant,09/12/2016,COURIER & DELIVERY CHARGES,Organ Donation & Transplantation,AMVALE LTD,2062828,21813.1,External courier and transport company costs
Department of Health,NHS Blood and Transplant,02/12/2016,COURIER & DELIVERY CHARGES,Diagnostic & Therapeutic Services,TNT EXPRESS UK LTD,2064846,12749.2,External courier and transport company costs
Department of Health,NHS Blood and Transplant,02/12/2016,COURIER & DELIVERY CHARGES,Diagnostic & Therapeutic Services,TNT EXPRESS UK LTD,2064851,13714.45,External courier and transport company costs
Department of Health,NHS Blood and Transplant,02/12/2016,COURIER & DELIVERY CHARGES,Logistics,TNT EXPRESS UK LTD,2064846,58109.91,External courier and transport company costs
Department of Health,NHS Blood and Transplant,02/12/2016,COURIER & DELIVERY CHARGES,Logistics,TNT EXPRESS UK LTD,2064851,60028.71,External courier and transport company costs
Department of Health,NHS Blood and Transplant,16/12/2016,ELECTRICITY,Estates & Facilities,EDF ENERGY,2067817,71357.64,Electricity costs
Department of Health,NHS Blood and Transplant,09/12/2016,ELECTRICITY,Estates & Facilities,EDF ENERGY,2067090,34414.1,Electricity costs
Department of Health,NHS Blood and Transplant,09/12/2016,ELECTRICITY,Estates & Facilities,EDF ENERGY,2067091,25855.5,Electricity costs
Department of Health,NHS Blood and Transplant,09/12/2016,ELECTRICITY,Estates & Facilities,OXFORD RADCLIFFE HOSPITALS NHS TRUST,2062156,25990.39,Electricity costs
Department of Health,NHS Blood and Transplant,16/12/2016,EQUIPMENT MAINTENANCE CONTRACT,Blood Supply: Blood Donation,TECHNO-PATH (DISTRIBUTION) LTD,2066830,44341.7,Costs of maintenance contracts on equipment
Department of Health,NHS Blood and Transplant,02/12/2016,EQUIPMENT MAINTENANCE CONTRACT,"Blood Supply: Manufacturing, Testing & Issue",CONTRONICS LTD,2051692,33038,Costs of maintenance contracts on equipment
Department of Health,NHS Blood and Transplant,30/12/2016,EQUIPMENT PURCHASES,"Blood Supply: Manufacturing, Testing & Issue",DEVA MEDICAL ELECTRONICS LIMITED,2072438,39995.05,Purchase of Equipment
Department of Health,NHS Blood and Transplant,23/12/2016,EQUIPMENT PURCHASES,Development Fund,POLAR THERMAL PACKAGING LTD,2065401,96000,Purchase of Equipment
Department of Health,NHS Blood and Transplant,30/12/2016,EXTERNAL MAILING SERVICES,Blood Supply: Blood Donation,WILLIAMS LEA LTD,2071535,46999.66,"External costs of mailing services, primarily relating to communications with donors"
Department of Health,NHS Blood and Transplant,30/12/2016,EXTERNAL MAILING SERVICES,Blood Supply: Blood Donation,WILLIAMS LEA LTD,2071537,27134.83,"External costs of mailing services, primarily relating to communications with donors"
Department of Health,NHS Blood and Transplant,23/12/2016,EXTERNAL MAILING SERVICES,Blood Supply: Blood Donation,WILLIAMS LEA LTD,2070590,97469.58,"External costs of mailing services, primarily relating to communications with donors"
Department of Health,NHS Blood and Transplant,09/12/2016,EXTERNAL MAILING SERVICES,Blood Supply: Blood Donation,WILLIAMS LEA LTD,2065805,27200.04,"External costs of mailing services, primarily relating to communications with donors"
Department of Health,NHS Blood and Transplant,02/12/2016,EXTERNAL MAILING SERVICES,Blood Supply: Blood Donation,WILLIAMS LEA LTD,2063989,24118.2,"External costs of mailing services, primarily relating to communications with donors"
Department of Health,NHS Blood and Transplant,02/12/2016,EXTERNAL MAILING SERVICES,Blood Supply: Blood Donation,WILLIAMS LEA LTD,2063990,38932.64,"External costs of mailing services, primarily relating to communications with donors"
Department of Health,NHS Blood and Transplant,02/12/2016,EXTERNAL MAILING SERVICES,Blood Supply: Blood Donation,WILLIAMS LEA LTD,2063994,30970.88,"External costs of mailing services, primarily relating to communications with donors"
Department of Health,NHS Blood and Transplant,30/12/2016,EXTERNAL MARKETING SERVICES,Blood Supply: Blood Donation,CARAT A TRADING DIVISION OF DENTSU AEGIS UK LTD,2068299,48559.16,"External costs of marketing services, primarily relating to communications with donors"
Department of Health,NHS Blood and Transplant,30/12/2016,EXTERNAL MARKETING SERVICES,Communication & Public Affairs,CARAT A TRADING DIVISION OF DENTSU AEGIS UK LTD,2068313,102489.15,"External costs of marketing services, primarily relating to communications with donors"
Department of Health,NHS Blood and Transplant,16/12/2016,EXTERNAL MARKETING SERVICES,Blood Supply: Blood Donation,CARAT A TRADING DIVISION OF DENTSU AEGIS UK LTD,2063899,30080.51,"External costs of marketing services, primarily relating to communications with donors"
Department of Health,NHS Blood and Transplant,09/12/2016,EXTERNAL MARKETING SERVICES,Blood Supply: Blood Donation,TELEPERFORMANCE LIMITED,2066990,201761.59,"External costs of marketing services, primarily relating to communications with donors"
Department of Health,NHS Blood and Transplant,30/12/2016,EXTERNAL SERVICES OTHER,Organ Donation & Transplantation,NHS LOTHIAN,2066577,36041.55,External costs of providing other services
Department of Health,NHS Blood and Transplant,23/12/2016,EXTERNAL SERVICES OTHER,Development Fund,ATOS IT SERVICES UK LTD,2065946,52283.51,External costs of providing other services
Department of Health,NHS Blood and Transplant,23/12/2016,EXTERNAL SERVICES OTHER,Development Fund,CAPGEMINI UK PLC,2063097,546292.8,External costs of providing other services
Department of Health,NHS Blood and Transplant,23/12/2016,EXTERNAL SERVICES OTHER,Development Fund,CAPGEMINI UK PLC,2067566,206141.1,External costs of providing other services
Department of Health,NHS Blood and Transplant,23/12/2016,EXTERNAL SERVICES OTHER,Development Fund,CAPGEMINI UK PLC,2067861,26208,External costs of providing other services
Department of Health,NHS Blood and Transplant,23/12/2016,EXTERNAL SERVICES OTHER,Development Fund,REPLY LIMITED,2066795,88045,External costs of providing other services
Department of Health,NHS Blood and Transplant,23/12/2016,EXTERNAL SERVICES OTHER,Development Fund,REPLY LIMITED,2066798,21855,External costs of providing other services
Department of Health,NHS Blood and Transplant,23/12/2016,EXTERNAL SERVICES OTHER,Development Fund,REPLY LIMITED,2066818,109060,External costs of providing other services
Department of Health,NHS Blood and Transplant,23/12/2016,EXTERNAL SERVICES OTHER,Human Resources,FIDELITI LTD,2071246,1066.2,External costs of providing other services
Department of Health,NHS Blood and Transplant,23/12/2016,EXTERNAL SERVICES OTHER,Information Communication Technology,REPLY LIMITED,2066798,38550,External costs of providing other services
Department of Health,NHS Blood and Transplant,23/12/2016,EXTERNAL SERVICES OTHER,Organ Donation & Transplantation,REPLY LIMITED,2066798,82815,External costs of providing other services
Department of Health,NHS Blood and Transplant,16/12/2016,EXTERNAL SERVICES OTHER,Development Fund,ATOS IT SERVICES UK LTD,2032391,33024.24,External costs of providing other services
Department of Health,NHS Blood and Transplant,09/12/2016,EXTERNAL SERVICES OTHER,Organ Donation & Transplantation,CAPGEMINI UK PLC,2063094,50232,External costs of providing other services
Department of Health,NHS Blood and Transplant,09/12/2016,EXTERNAL SERVICES OTHER,Organ Donation & Transplantation,NHS LOTHIAN,2065926,36041.55,External costs of providing other services
Department of Health,NHS Blood and Transplant,09/12/2016,EXTERNAL SERVICES OTHER,Organ Donation & Transplantation,T-IMPACT LIMITED,2065974,88820,External costs of providing other services
Department of Health,NHS Blood and Transplant,02/12/2016,EXTERNAL SERVICES OTHER,Development Fund,ATOS IT SERVICES UK LTD,2033379,21784.53,External costs of providing other services
Department of Health,NHS Blood and Transplant,02/12/2016,EXTERNAL SERVICES OTHER,Information Communication Technology,ATOS IT SERVICES UK LTD,2046023,43500,External costs of providing other services
Department of Health,NHS Blood and Transplant,02/12/2016,EXTERNAL SERVICES OTHER,Organ Donation & Transplantation,REPLY LIMITED,2060056,123493.75,External costs of providing other services
Department of Health,NHS Blood and Transplant,09/12/2016,GAS,Estates & Facilities,OXFORD RADCLIFFE HOSPITALS NHS TRUST,2062156,949.63,Gas costs
Department of Health,NHS Blood and Transplant,23/12/2016,IMPORTS FRESH FROZEN PLASMA,"Blood Supply: Manufacturing, Testing & Issue",PAM MEDICAL SUPPLIES LIMITED,2053437,29590.32,Imports of Fresh Frozen Plasma
Department of Health,NHS Blood and Transplant,23/12/2016,IMPORTS FRESH FROZEN PLASMA,"Blood Supply: Manufacturing, Testing & Issue",PAM MEDICAL SUPPLIES LIMITED,2067302,66773.36,Imports of Fresh Frozen Plasma
Department of Health,NHS Blood and Transplant,09/12/2016,IMPORTS FRESH FROZEN PLASMA,"Blood Supply: Manufacturing, Testing & Issue",PAM MEDICAL SUPPLIES LIMITED,2063973,70960,Imports of Fresh Frozen Plasma
Department of Health,NHS Blood and Transplant,02/12/2016,IMPORTS FRESH FROZEN PLASMA,"Blood Supply: Manufacturing, Testing & Issue",PAM MEDICAL SUPPLIES LIMITED,2063972,54852.08,Imports of Fresh Frozen Plasma
Department of Health,NHS Blood and Transplant,30/12/2016,INVENTORY MATERIALS,,MACO PHARMA UK LTD,2069890,81755.57,Items purchased for warehouses (and subsequent issue to operational departments)
Department of Health,NHS Blood and Transplant,30/12/2016,INVENTORY MATERIALS,,MACO PHARMA UK LTD,2069894,64431.36,Items purchased for warehouses (and subsequent issue to operational departments)
Department of Health,NHS Blood and Transplant,30/12/2016,INVENTORY MATERIALS,,MACO PHARMA UK LTD,2069900,64583.66,Items purchased for warehouses (and subsequent issue to operational departments)
Department of Health,NHS Blood and Transplant,30/12/2016,INVENTORY MATERIALS,,TERUMO BCT EUROPE NV/SA,2067186,59187.46,Items purchased for warehouses (and subsequent issue to operational departments)
Department of Health,NHS Blood and Transplant,23/12/2016,INVENTORY MATERIALS,,MACO PHARMA UK LTD,2067026,64415.23,Items purchased for warehouses (and subsequent issue to operational departments)
Department of Health,NHS Blood and Transplant,23/12/2016,INVENTORY MATERIALS,,MACO PHARMA UK LTD,2069875,27449.86,Items purchased for warehouses (and subsequent issue to operational departments)
Department of Health,NHS Blood and Transplant,23/12/2016,INVENTORY MATERIALS,,MACO PHARMA UK LTD,2069879,81204.48,Items purchased for warehouses (and subsequent issue to operational departments)
Department of Health,NHS Blood and Transplant,23/12/2016,INVENTORY MATERIALS,,MACO PHARMA UK LTD,2069884,55548.53,Items purchased for warehouses (and subsequent issue to operational departments)
Department of Health,NHS Blood and Transplant,23/12/2016,INVENTORY MATERIALS,,TERUMO BCT EUROPE NV/SA,2067143,33459.84,Items purchased for warehouses (and subsequent issue to operational departments)
Department of Health,NHS Blood and Transplant,23/12/2016,INVENTORY MATERIALS,,TERUMO BCT EUROPE NV/SA,2067155,36624,Items purchased for warehouses (and subsequent issue to operational departments)
Department of Health,NHS Blood and Transplant,23/12/2016,INVENTORY MATERIALS,,TERUMO BCT EUROPE NV/SA,2067182,83941.63,Items purchased for warehouses (and subsequent issue to operational departments)
Department of Health,NHS Blood and Transplant,23/12/2016,INVENTORY MATERIALS,,THERAKOS (UK) LTD,2069415,34571.34,Items purchased for warehouses (and subsequent issue to operational departments)
Department of Health,NHS Blood and Transplant,23/12/2016,INVENTORY MATERIALS,,THERAKOS (UK) LTD,2069416,34571.34,Items purchased for warehouses (and subsequent issue to operational departments)
Department of Health,NHS Blood and Transplant,16/12/2016,INVENTORY MATERIALS,,INSIGHT HEALTH LTD,2066001,35712,Items purchased for warehouses (and subsequent issue to operational departments)
Department of Health,NHS Blood and Transplant,16/12/2016,INVENTORY MATERIALS,,MACO PHARMA UK LTD,2064716,31584.71,Items purchased for warehouses (and subsequent issue to operational departments)
Department of Health,NHS Blood and Transplant,16/12/2016,INVENTORY MATERIALS,,MACO PHARMA UK LTD,2064725,81755.57,Items purchased for warehouses (and subsequent issue to operational departments)
Department of Health,NHS Blood and Transplant,16/12/2016,INVENTORY MATERIALS,,MACO PHARMA UK LTD,2064750,43158.82,Items purchased for warehouses (and subsequent issue to operational departments)
Department of Health,NHS Blood and Transplant,16/12/2016,INVENTORY MATERIALS,,MACO PHARMA UK LTD,2064817,68447.23,Items purchased for warehouses (and subsequent issue to operational departments)
Department of Health,NHS Blood and Transplant,16/12/2016,INVENTORY MATERIALS,,MACO PHARMA UK LTD,2064821,31965.7,Items purchased for warehouses (and subsequent issue to operational departments)
Department of Health,NHS Blood and Transplant,16/12/2016,INVENTORY MATERIALS,,TERUMO BCT EUROPE NV/SA,2065070,59187.46,Items purchased for warehouses (and subsequent issue to operational departments)
Department of Health,NHS Blood and Transplant,09/12/2016,INVENTORY MATERIALS,,MACO PHARMA UK LTD,2063139,41352.19,Items purchased for warehouses (and subsequent issue to operational departments)
Department of Health,NHS Blood and Transplant,09/12/2016,INVENTORY MATERIALS,,MACO PHARMA UK LTD,2063142,41756.35,Items purchased for warehouses (and subsequent issue to operational departments)
Department of Health,NHS Blood and Transplant,09/12/2016,INVENTORY MATERIALS,,MACO PHARMA UK LTD,2063150,37770.55,Items purchased for warehouses (and subsequent issue to operational departments)
Department of Health,NHS Blood and Transplant,09/12/2016,INVENTORY MATERIALS,,MACO PHARMA UK LTD,2063155,45158.4,Items purchased for warehouses (and subsequent issue to operational departments)
Department of Health,NHS Blood and Transplant,09/12/2016,INVENTORY MATERIALS,,TERUMO BCT EUROPE NV/SA,2063205,100963.58,Items purchased for warehouses (and subsequent issue to operational departments)
Department of Health,NHS Blood and Transplant,09/12/2016,INVENTORY MATERIALS,,TERUMO BCT EUROPE NV/SA,2063210,58598.4,Items purchased for warehouses (and subsequent issue to operational departments)
Department of Health,NHS Blood and Transplant,09/12/2016,INVENTORY MATERIALS,,TERUMO BCT EUROPE NV/SA,2063213,41776.13,Items purchased for warehouses (and subsequent issue to operational departments)
Department of Health,NHS Blood and Transplant,02/12/2016,INVENTORY MATERIALS,,MACO PHARMA UK LTD,2060738,40403.38,Items purchased for warehouses (and subsequent issue to operational departments)
Department of Health,NHS Blood and Transplant,02/12/2016,INVENTORY MATERIALS,,MACO PHARMA UK LTD,2060742,36223.49,Items purchased for warehouses (and subsequent issue to operational departments)
Department of Health,NHS Blood and Transplant,02/12/2016,INVENTORY MATERIALS,,MACO PHARMA UK LTD,2060751,77833.73,Items purchased for warehouses (and subsequent issue to operational departments)
Department of Health,NHS Blood and Transplant,02/12/2016,INVENTORY MATERIALS,,THERAKOS (UK) LTD,2062341,28809.45,Items purchased for warehouses (and subsequent issue to operational departments)
Department of Health,NHS Blood and Transplant,02/12/2016,INVENTORY MATERIALS,,THERAKOS (UK) LTD,2063923,34571.34,Items purchased for warehouses (and subsequent issue to operational departments)
Department of Health,NHS Blood and Transplant,09/12/2016,IT COMMUNICATIONS LINKS,"Blood Supply: Manufacturing, Testing & Issue",VODAFONE,2061311,1295.84,Costs of IT infrastructure communications links
Department of Health,NHS Blood and Transplant,09/12/2016,IT COMMUNICATIONS LINKS,Estates & Facilities,VODAFONE,2061311,5708.55,Costs of IT infrastructure communications links
Department of Health,NHS Blood and Transplant,09/12/2016,IT COMMUNICATIONS LINKS,Information Communication Technology,VODAFONE,2061311,117204.6,Costs of IT infrastructure communications links
Department of Health,NHS Blood and Transplant,09/12/2016,IT COMMUNICATIONS LINKS,Logistics,VODAFONE,2061311,400.28,Costs of IT infrastructure communications links
Department of Health,NHS Blood and Transplant,30/12/2016,IT HARDWARE,Information Communication Technology,SOFTCAT LTD,2066893,42696.11,Purchase of IT hardware
Department of Health,NHS Blood and Transplant,23/12/2016,IT HARDWARE MAINTENANCE,Information Communication Technology,SCC - AUDIOVISUAL DIVISION,2065729,54258.48,Maintenance costs of IT hardware
Department of Health,NHS Blood and Transplant,16/12/2016,IT HARDWARE MAINTENANCE,Information Communication Technology,SAVANT LIMITED,2066045,31914,Maintenance costs of IT hardware
Department of Health,NHS Blood and Transplant,09/12/2016,IT HARDWARE MAINTENANCE,Information Communication Technology,VODAFONE,2061311,1648,Maintenance costs of IT hardware
Department of Health,NHS Blood and Transplant,23/12/2016,IT SOFTWARE,Information Communication Technology,BYTES TECHNOLOGY GROUP,2065464,80115.3,Purchase of IT software
Department of Health,NHS Blood and Transplant,16/12/2016,IT SOFTWARE,Information Communication Technology,SAVANT LIMITED,2067743,81405,Purchase of IT software
Department of Health,NHS Blood and Transplant,02/12/2016,IT SOFTWARE,Information Communication Technology,SAPIENT LTD,2060573,31913,Purchase of IT software
Department of Health,NHS Blood and Transplant,23/12/2016,IT SOFTWARE MAINTENANCE,Information Communication Technology,OPEN REALITY,2065195,39872.19,Maintenance costs of IT software
Department of Health,NHS Blood and Transplant,23/12/2016,IT SOFTWARE MAINTENANCE,Information Communication Technology,SAVANT LIMITED,2066800,70656.92,Maintenance costs of IT software
Department of Health,NHS Blood and Transplant,23/12/2016,IT SOFTWARE MAINTENANCE,Information Communication Technology,TRUSTMARQUE SOLUTIONS LIMITED,2065196,100940.14,Maintenance costs of IT software
Department of Health,NHS Blood and Transplant,16/12/2016,IT SOFTWARE MAINTENANCE,Information Communication Technology,SAVANT LIMITED,2066045,212878,Maintenance costs of IT software
Department of Health,NHS Blood and Transplant,16/12/2016,IT SOFTWARE MAINTENANCE,Information Communication Technology,SAVANT LIMITED,2066046,49502,Maintenance costs of IT software
Department of Health,NHS Blood and Transplant,09/12/2016,IT SOFTWARE MAINTENANCE,Information Communication Technology,VODAFONE,2061311,1541.6,Maintenance costs of IT software
Department of Health,NHS Blood and Transplant,09/12/2016,IT SOFTWARE MAINTENANCE,Organ Donation & Transplantation,SOFTCAT LTD,2062337,26445,Maintenance costs of IT software
Department of Health,NHS Blood and Transplant,09/12/2016,MOBILE TELEPHONES,Information Communication Technology,VODAFONE,2061311,32758,Mobile telephone costs
Department of Health,NHS Blood and Transplant,23/12/2016,OTHER PROFESSIONAL FEES,Development Fund,SCC - AUDIOVISUAL DIVISION,2062330,46525,Other professional fees - server based computing project
Department of Health,NHS Blood and Transplant,23/12/2016,OTHER PROFESSIONAL FEES,Development Fund,SCC - AUDIOVISUAL DIVISION,2067902,29050,Other professional fees - server based computing project
Department of Health,NHS Blood and Transplant,23/12/2016,OTHER PROFESSIONAL FEES,Estates & Facilities,TURNER & TOWNSEND,2063979,28174.53,Other professional fees - Tooting generators and chillers Jun-Sep16
Department of Health,NHS Blood and Transplant,16/12/2016,OTHER PROFESSIONAL FEES,Information Communication Technology,QA LTD,2063907,57755,Other professional fees - Skills licence for desktop modernisation programme
Department of Health,NHS Blood and Transplant,16/12/2016,OTHER PROFESSIONAL FEES,Logistics,AUTOMOTIVE LEASING LTD,2065130,2722,Other professional fees - monthly management charge relating to leased fleet vehicle maintenance contract
Department of Health,NHS Blood and Transplant,16/12/2016,OTHER PROFESSIONAL FEES,Logistics,HITACHI CAPITAL,2064199,2517.5,Other professional fees - monthly management charge relating to leased fleet vehicle maintenance contract
Department of Health,NHS Blood and Transplant,30/12/2016,POSTAGE,Blood Supply: Blood Donation,WILLIAMS LEA LTD,2071535,6368.77,Postage costs
Department of Health,NHS Blood and Transplant,30/12/2016,POSTAGE,Blood Supply: Blood Donation,WILLIAMS LEA LTD,2071537,5484.13,Postage costs
Department of Health,NHS Blood and Transplant,23/12/2016,POSTAGE,Blood Supply: Blood Donation,WILLIAMS LEA LTD,2070590,13773.89,Postage costs
Department of Health,NHS Blood and Transplant,09/12/2016,POSTAGE,Blood Supply: Blood Donation,WILLIAMS LEA LTD,2065805,5964.4,Postage costs
Department of Health,NHS Blood and Transplant,02/12/2016,POSTAGE,Blood Supply: Blood Donation,WILLIAMS LEA LTD,2063989,4947.29,Postage costs
Department of Health,NHS Blood and Transplant,02/12/2016,POSTAGE,Blood Supply: Blood Donation,WILLIAMS LEA LTD,2063990,14810.4,Postage costs
Department of Health,NHS Blood and Transplant,02/12/2016,POSTAGE,Blood Supply: Blood Donation,WILLIAMS LEA LTD,2063994,4844.85,Postage costs
Department of Health,NHS Blood and Transplant,16/12/2016,PREMISES MAINTENANCE - MINOR WORKS,Development Fund,INTERSERVE  CONSTRUCTION LTD,2068461,368764.62,Minor works projects costs
Department of Health,NHS Blood and Transplant,09/12/2016,PREMISES MAINTENANCE - MINOR WORKS,Development Fund,BASSAIRE LTD,2062090,29342.88,Minor works projects costs
Department of Health,NHS Blood and Transplant,09/12/2016,PREMISES MAINTENANCE - MINOR WORKS,Development Fund,INTERSERVE  CONSTRUCTION LTD,2062626,225523.99,Minor works projects costs
Department of Health,NHS Blood and Transplant,09/12/2016,PREMISES MAINTENANCE - MINOR WORKS,Estates & Facilities,INTERSERVE  CONSTRUCTION LTD,2058653,112033.85,Minor works projects costs
Department of Health,NHS Blood and Transplant,09/12/2016,PREMISES MAINTENANCE - MINOR WORKS,Estates & Facilities,INTERSERVE  CONSTRUCTION LTD,2062292,82809.72,Minor works projects costs
Department of Health,NHS Blood and Transplant,09/12/2016,PREMISES MAINTENANCE - MINOR WORKS,Estates & Facilities,INTERSERVE  CONSTRUCTION LTD,2062294,46737.25,Minor works projects costs
Department of Health,NHS Blood and Transplant,02/12/2016,PREMISES MAINTENANCE - MINOR WORKS,Estates & Facilities,MUDDIMAN BUILDING SERVICES,2060779,25000,Minor works projects costs
Department of Health,NHS Blood and Transplant,16/12/2016,PREMISES MAINTENANCE - PLANNED,Estates & Facilities,CBRE MANAGED SERVICES LTD FORMERLY NORLAND MANAGED SERVICES,2063096,124189.34,Planned / scheduled premises maintenace costs
Department of Health,NHS Blood and Transplant,16/12/2016,PREMISES MAINTENANCE - PLANNED,Estates & Facilities,MITIE TECHNICAL FACILITIES MANAGEMENT,2067239,60595.45,Planned / scheduled premises maintenace costs
Department of Health,NHS Blood and Transplant,23/12/2016,RENT/LEASE,Estates & Facilities,UNIVERSITY HOSPITALS OF MORECAMBE BAY NHS TRUST,2035667,34493.81,Property rent costs
Department of Health,NHS Blood and Transplant,16/12/2016,RENT/LEASE,Estates & Facilities,DUCHY OF LANCASTER,1992331,123000,Property rent costs
Department of Health,NHS Blood and Transplant,16/12/2016,RENT/LEASE,Estates & Facilities,EDDISONS,1992322,38250,Property rent costs
Department of Health,NHS Blood and Transplant,16/12/2016,RENT/LEASE,Estates & Facilities,FI REAL ESTATE MANAGEMENT LIMITED,2025032,39450,Property rent costs
Department of Health,NHS Blood and Transplant,16/12/2016,RENT/LEASE,Estates & Facilities,GBR PHOENIX BEARD,1992378,30000,Property rent costs
Department of Health,NHS Blood and Transplant,16/12/2016,RENT/LEASE,Estates & Facilities,JONES LANG LASALLE,1992416,33052.5,Property rent costs
Department of Health,NHS Blood and Transplant,16/12/2016,RENT/LEASE,Estates & Facilities,OXFORD RADCLIFFE HOSPITALS NHS TRUST,2051514,115250,Property rent costs
Department of Health,NHS Blood and Transplant,16/12/2016,RENT/LEASE,Estates & Facilities,STANDARD LIFE INVESTMENTS,1992308,34131,Property rent costs
Department of Health,NHS Blood and Transplant,09/12/2016,RENT/LEASE,Estates & Facilities,UNIVERSITY HOSPITALS BIRMINGHAM NHS FOUNDATION TRUST,2060868,79252.73,Property rent costs
Department of Health,NHS Blood and Transplant,09/12/2016,TELEPHONES,Human Resources,VODAFONE,2061311,1935,Telephone costs
Department of Health,NHS Blood and Transplant,09/12/2016,TELEPHONES,Information Communication Technology,VODAFONE,2061311,57551,Telephone costs
Department of Health,NHS Blood and Transplant,30/12/2016,TEMPORARY OTHER,Communications,CAPITA RESOURCING LTD,2072518,1190.86,Temporary Staff costs
Department of Health,NHS Blood and Transplant,30/12/2016,TEMPORARY OTHER,Human Resources,CAPITA RESOURCING LTD,2072518,10755.89,Temporary Staff costs
Department of Health,NHS Blood and Transplant,30/12/2016,TEMPORARY OTHER,Information Communication Technology,CAPITA RESOURCING LTD,2072518,17620.81,Temporary Staff costs
Department of Health,NHS Blood and Transplant,23/12/2016,TEMPORARY OTHER,Development Fund,CAPITA RESOURCING LTD,2071267,9640.59,Temporary Staff costs
Department of Health,NHS Blood and Transplant,23/12/2016,TEMPORARY OTHER,Human Resources,CAPITA RESOURCING LTD,2071267,20640.48,Temporary Staff costs
Department of Health,NHS Blood and Transplant,23/12/2016,TEMPORARY OTHER,Information Communication Technology,CAPITA RESOURCING LTD,2071267,4331.09,Temporary Staff costs
Department of Health,NHS Blood and Transplant,16/12/2016,TEMPORARY OTHER,Communications,CAPITA RESOURCING LTD,2069147,1323.18,Temporary Staff costs
Department of Health,NHS Blood and Transplant,16/12/2016,TEMPORARY OTHER,Human Resources,CAPITA RESOURCING LTD,2069147,37166.37,Temporary Staff costs
Department of Health,NHS Blood and Transplant,16/12/2016,TEMPORARY OTHER,Information Communication Technology,CAPITA RESOURCING LTD,2069147,26277.46,Temporary Staff costs
Department of Health,NHS Blood and Transplant,09/12/2016,TEMPORARY OTHER,Communications,CAPITA RESOURCING LTD,2066610,1323.18,Temporary Staff costs
Department of Health,NHS Blood and Transplant,09/12/2016,TEMPORARY OTHER,Communications,CAPITA RESOURCING LTD,2067636,1323.18,Temporary Staff costs
Department of Health,NHS Blood and Transplant,09/12/2016,TEMPORARY OTHER,Finance,CAPITA RESOURCING LTD,2066610,2129.58,Temporary Staff costs
Department of Health,NHS Blood and Transplant,09/12/2016,TEMPORARY OTHER,Human Resources,CAPITA RESOURCING LTD,2066610,12624.6,Temporary Staff costs
Department of Health,NHS Blood and Transplant,09/12/2016,TEMPORARY OTHER,Human Resources,CAPITA RESOURCING LTD,2067636,5812.48,Temporary Staff costs
Department of Health,NHS Blood and Transplant,09/12/2016,TEMPORARY OTHER,Information Communication Technology,CAPITA RESOURCING LTD,2066610,22238.25,Temporary Staff costs
Department of Health,NHS Blood and Transplant,09/12/2016,TEMPORARY OTHER,Information Communication Technology,CAPITA RESOURCING LTD,2067636,26466.95,Temporary Staff costs
Department of Health,NHS Blood and Transplant,02/12/2016,TEMPORARY OTHER,Development Fund,ATOS IT SERVICES UK LTD,2046023,1143.64,Temporary Staff costs
Department of Health,NHS Blood and Transplant,09/12/2016,TEST KITS - MOLECULAR,"Blood Supply: Manufacturing, Testing & Issue",GRIFOLS UK LTD,2062257,25440,For testing of donations and samples for specific markers
Department of Health,NHS Blood and Transplant,09/12/2016,TEST KITS - MOLECULAR,"Blood Supply: Manufacturing, Testing & Issue",GRIFOLS UK LTD,2062260,25440,For testing of donations and samples for specific markers
Department of Health,NHS Blood and Transplant,02/12/2016,TEST KITS OTHER,Diagnostic & Therapeutic Services,VH BIO LTD,2060835,25020,For testing of donations and samples for specific markers
Department of Health,NHS Blood and Transplant,16/12/2016,TRAINING AND CONFERENCES ANC,Information Communication Technology,QA LTD,2063907,87974,Training and Conference costs for Ancillary Staff
Department of Health,NHS Blood and Transplant,23/12/2016,TRAVEL AND HOTEL SUSPENSE ACCOUNT,,REDFERN TRAVEL LTD,2067108,366690.56,Travel and hotel costs arising from central booking system used
Department of Health,NHS Blood and Transplant,09/12/2016,VEHICLE FUEL & OILS,Blood Supply: Blood Donation,ALLSTAR BUSINESS SOLUTIONS LTD,2066997,166.59,Charges for vehicle fuel
Department of Health,NHS Blood and Transplant,09/12/2016,VEHICLE FUEL & OILS,Logistics,ALLSTAR BUSINESS SOLUTIONS LTD,2066997,26625.19,Charges for vehicle fuel
Department of Health,NHS Blood and Transplant,16/12/2016,VEHICLE REPAIRS & MAINTENANCE,Logistics,AUTOMOTIVE LEASING LTD,2065130,39087.6,External contract for fleet vehicle repairs amd maintenance
Department of Health,NHS Blood and Transplant,16/12/2016,VEHICLE REPAIRS & MAINTENANCE,Logistics,HITACHI CAPITAL,2064199,33663.41,External contract for fleet vehicle repairs amd maintenance
Department of Health,NHS Blood and Transplant,09/12/2016,WATER & SEWERAGE,Estates & Facilities,OXFORD RADCLIFFE HOSPITALS NHS TRUST,2062156,2743.5,Charges relating to water and sewerage costs
Department of Health,NHS Blood and Transplant,05/12/2016,PURCHASING CARD SUSPENSE,NBS and ODT All Areas,RBS Mastercard,DD,166243.55,Purchasing Card Expenditure
Department of Health,NHS Blood and Transplant,15/12/2016,INSURANCE,Finance,NHSLA,DD,80859,Insurance costs
